[Event "Norm Congress-IM 2018"]
[Site "Saint Louis"]
[Date "2018.02.08"]
[Round "1"]
[White "Stearman, Josiah"]
[Black "Grabinsky, Aaron"]
[Result "1-0"]
[ECO "C01"]
[WhiteElo "2335"]
[BlackElo "2388"]
[Annotator "RC"]
[PlyCount "103"]
[EventDate "2018.??.??"]
[EventType "schev"]
[EventCountry "USA"]
[SourceTitle "playchess.com"]
[Source "ChessBase"]
[SourceQuality "1"]
[TimeControl "5400+30"]

1. e4 {[%emt 0:00:00]} e6 {[%emt 0:00:04]} 2. d4 {[%emt 0:00:00]} d5 {[%emt 0:00:10]} 3. exd5 {[%emt 0:00:00]} exd5 {[%emt 0:00:06]} 4. Nf3 {[%emt 0:00:00]} Nc6 {[%emt 0:00:25]} 5. Bd3 {[%emt 0:00:47]} Bd6 {[%emt 0:00:17]} 6. O-O {[%emt 0:00:34]} Nge7 {[%emt 0:00:36]} 7. Re1 {[%emt 0:01:44]} O-O {[%emt 0:01:18]} 8. c3 {[%emt 0:00:47]} Bf5 {[%emt 0:01:38]} 9. Bxf5 {[%emt 0:07:00]} Nxf5 {[%emt 0:00:06]} 10. Qd3 {[%emt 0:00:29]} Qd7 {[%emt 0:01:18]} 11. Bg5 {[%emt 0:02:39]} f6 {[%emt 0:01:56]} 12. Bh4 {[%emt 0:00:30]} a6 {[%emt 0:01:24]} 13. Nbd2 {[%emt 0:01:17]} Nce7 {[%emt 0:03:35]} 14. Bg3 {[%emt 0:08:14]} Rfe8 {[%emt 0:01:50]} 15. Nf1 {[%emt 0:03:19]} Ng6 {[%emt 0:03:04]} 16. N3d2 {[%emt 0:02:03]} c6 {[%emt 0:08:50]} 17. Nb3 {[%emt 0:02:06]} Bxg3 {[%emt 0:03:15]} 18. hxg3 {[%emt 0:02:32]} Nd6 {[%emt 0:01:05]} 19. Nc5 {[%emt 0:02:00]} Qf7 {[%emt 0:05:33]} 20. Nd2 {[%emt 0:04:39]} Nf8 {[%emt 0:03:11]} 21. a4 {[%emt 0:03:33]} a5 {[%emt 0:03:19]} 22. Qf3 {[%emt 0:01:29]} b6 {[%emt 0:02:00]} 23. Nd3 {[%emt 0:00:20]} Ne6 {[%emt 0:01:10]} 24. Qg4 {[%emt 0:05:32]} h5 {[%emt 0:02:59]} 25. Qd1 {[%emt 0:01:47]} Qg6 {[%emt 0:04:13]} 26. Rxe6 {[%emt 0:01:43]} Rxe6 {[%emt 0:01:39]} 27. Nf4 {[%emt 0:00:06]} Qf5 {[%emt 0:00:20]} 28. Nxe6 {[%emt 0:00:09]} Qxe6 {[%emt 0:00:04]} 29. Qxh5 {[%emt 0:00:13]} Re8 {[%emt 0:04:32]} 30. Nf3 {[%emt 0:01:13]} Qc8 {[%emt 0:02:09]} 31. Nh4 {[%emt 0:03:18]} Re4 {[%emt 0:05:27]} 32. Ng6 {[%emt 0:03:14]} Qe6 {[%emt 0:05:09]} 33. Qh8+ {[%emt 0:01:41]} Kf7 {[%emt 0:00:11]} 34. Nf4 {[%emt 0:00:10]} Re1+ {[%emt 0:02:35]} 35. Kh2 {[%emt 0:00:15]} Qe4 {[%emt 0:03:14]} 36. f3 {[%emt 0:01:00]} Qe3 {[%emt 0:00:56]} 37. Rxe1 {[%emt 0:00:27]} Qxe1 {[%emt 0:00:05]} 38. Qd8 {[%emt 0:01:13]} Nf5 {[%emt 0:01:52]} 39. Qc7+ {[%emt 0:01:03]} Ne7 {[%emt 0:01:25]} 40. Qxb6 {[%emt 0:01:29]} g5 {[%emt 0:00:29]} 41. Nd3 {[%emt 0:03:21]} Qe3 {[%emt 0:01:09]} 42. Qa6 {[%emt 0:03:58]} Nf5 {[%emt 0:02:44]} 43. Qxc6 {[%emt 0:18:51]} Qxd3 {[%emt 0:01:15]} 44. Qxd5+ {[%emt 0:01:54]} Kg6 {[%emt 0:00:22]} 45. g4 {[%emt 0:00:29]} Ne3 {[%emt 0:02:27]} 46. Qe4+ {[%emt 0:06:02]} Qxe4 {[%emt 0:00:08]} 47. fxe4 {[%emt 0:00:02]} Kf7 {[%emt 0:04:45]} 48. Kg3 {[%emt 0:00:34]} Ke6 {[%emt 0:00:55]} 49. Kf3 {[%emt 0:02:25]} Nc2 {[%emt 0:03:57]} 50. Ke2 {[%emt 0:00:33]} Kd6 {[%emt 0:01:07]} 51. Kd2 {[%emt 0:00:19]} Na1 {[%emt 0:00:05]} 52. b3 {[%emt 0:00:23] Kd5} 1-0

[Event "Norm Congress-IM 2018"]
[Site "Saint Louis"]
[Date "2018.02.08"]
[Round "1"]
[White "Turgut, Tansel"]
[Black "Jacobson, Brandon"]
[Result "1-0"]
[ECO "A48"]
[WhiteElo "2224"]
[BlackElo "2351"]
[Annotator "RC"]
[PlyCount "121"]
[EventDate "2018.??.??"]
[EventType "schev"]
[EventCountry "USA"]
[SourceTitle "playchess.com"]
[Source "ChessBase"]
[SourceQuality "1"]
[TimeControl "5400+30"]

1. d4 {[%emt 0:00:00]} Nf6 {[%emt 0:00:09]} 2. Nf3 {[%emt 0:00:00]} g6 {[%emt 0:00:11]} 3. Bf4 {[%emt 0:01:53]} Bg7 {[%emt 0:00:09]} 4. h3 {[%emt 0:00:38]} O-O {[%emt 0:00:17]} 5. e3 {[%emt 0:00:06]} d6 {[%emt 0:02:03]} 6. Be2 {[%emt 0:00:06]} b6 {[%emt 0:00:54]} 7. O-O {[%emt 0:00:25]} Bb7 {[%emt 0:00:05]} 8. a4 {[%emt 0:01:51]} a5 {[%emt 0:00:16]} 9. Bh2 {[%emt 0:01:49]} Nbd7 {[%emt 0:00:08]} 10. c4 {[%emt 0:03:24]} Re8 {[%emt 0:18:48]} 11. Nc3 {[%emt 0:02:03]} Ne4 {[%emt 0:06:51]} 12. Nxe4 {[%emt 0:03:23]} Bxe4 {[%emt 0:00:18]} 13. Nd2 {[%emt 0:02:42]} Bb7 {[%emt 0:00:21]} 14. Bf3 {[%emt 0:01:00]} Bxf3 {[%emt 0:00:06]} 15. Nxf3 {[%emt 0:02:35]} e5 {[%emt 0:01:57]} 16. Qc2 {[%emt 0:09:59]} Qe7 {[%emt 0:01:31]} 17. Rad1 {[%emt 0:02:37]} Rad8 {[%emt 0:03:59]} 18. b3 {[%emt 0:05:16]} f5 {[%emt 0:15:54]} 19. dxe5 {[%emt 0:17:45]} dxe5 {[%emt 0:01:49]} 20. Rd5 {[%emt 0:00:07]} c6 {[%emt 0:08:57]} 21. Rd2 {[%emt 0:00:43]} Nc5 {[%emt 0:00:04]} 22. Rfd1 {[%emt 0:00:11]} Rxd2 {[%emt 0:07:12]} 23. Rxd2 {[%emt 0:00:05]} e4 {[%emt 0:02:04]} 24. Bd6 {[%emt 0:02:38]} Qf6 {[%emt 0:05:03]} 25. Bxc5 {[%emt 0:09:34]} bxc5 {[%emt 0:00:03]} 26. Nh2 {[%emt 0:02:58]} Rb8 {[%emt 0:04:04]} 27. Nf1 {[%emt 0:01:14]} h5 {[%emt 0:13:13]} 28. Qd1 {[%emt 0:05:00]} Qc3 {[%emt 0:03:18]} 29. Rd7 {[%emt 0:00:03]} Rxb3 {[%emt 0:00:43]} 30. Qd6 {[%emt 0:04:38]} Qf6 {[%emt 0:00:59]} 31. Qxf6 {[%emt 0:06:43]} Bxf6 {[%emt 0:00:13]} 32. Rd6 {[%emt 0:00:09]} Kg7 {[%emt 0:01:32]} 33. Rxc6 {[%emt 0:01:21]} Rb4 {[%emt 0:00:01]} 34. Rxc5 {[%emt 0:00:09]} Rxa4 {[%emt 0:00:01]} 35. g4 {[%emt 0:00:12]} hxg4 {[%emt 0:03:51]} 36. hxg4 fxg4 37. Ng3 {[%emt 0:00:30]} Ra1+ {[%emt 0:00:32]} 38. Kg2 {[%emt 0:00:01]} a4 {[%emt 0:00:09]} 39. Nxe4 {[%emt 0:00:39]} Bb2 {[%emt 0:00:00]} 40. Ra5 {[%emt 0:07:11]} a3 41. Kg3 {[%emt 0:00:50]} Rg1+ {[%emt 0:01:58]} 42. Kf4 {[%emt 0:02:24]} Rc1 43. Ra4 {[%emt 0:00:02]} Rg1 {[%emt 0:01:43]} 44. Ra7+ {[%emt 0:01:34]} Kh6 {[%emt 0:00:29]} 45. c5 {[%emt 0:02:09]} g5+ {[%emt 0:00:28]} 46. Kf5 Rg2 47. c6 {[%emt 0:00:56]} g3 {[%emt 0:00:31]} 48. fxg3 {[%emt 0:02:23]} Rc2 {[%emt 0:00:02]} 49. c7 {[%emt 0:00:17]} Rc4 {[%emt 0:01:26]} 50. Nd6 {[%emt 0:00:38]} Rc5+ {[%emt 0:00:16]} 51. Ke6 {[%emt 0:00:04]} Rxc7 {[%emt 0:00:10]} 52. Rxc7 {[%emt 0:00:02]} a2 {[%emt 0:00:01]} 53. Ra7 {[%emt 0:00:55]} a1=Q {[%emt 0:00:03]} 54. Rxa1 {[%emt 0:00:09]} Bxa1 {[%emt 0:00:01]} 55. Kf5 {[%emt 0:00:07]} Bb2 {[%emt 0:02:30]} 56. Nf7+ {[%emt 0:00:55]} Kh5 {[%emt 0:00:05]} 57. g4+ {[%emt 0:00:08]} Kh4 {[%emt 0:00:02]} 58. e4 {[%emt 0:00:11]} Ba3 {[%emt 0:01:15]} 59. e5 {[%emt 0:01:09]} Be7 {[%emt 0:00:05]} 60. e6 {[%emt 0:00:04]} Kg3 {[%emt 0:00:09]} 61. Ne5 {[%emt 0:00:11]} 1-0

[Event "Norm Congress-IM 2018"]
[Site "Saint Louis"]
[Date "2018.02.09"]
[Round "2"]
[White "Banawa, Joel"]
[Black "Turgut, Tansel"]
[Result "1-0"]
[ECO "D45"]
[WhiteElo "2401"]
[BlackElo "2224"]
[Annotator "ChessBase"]
[PlyCount "81"]
[EventDate "2018.??.??"]
[EventType "schev"]
[EventCountry "USA"]
[SourceTitle "playchess.com"]
[Source "ChessBase"]
[SourceQuality "1"]
[TimeControl "5400+30"]

1. c4 {[%emt 0:00:00]} Nf6 {[%emt 0:00:20]} 2. Nc3 {[%emt 0:00:16]} c6 {[%emt 0:00:05]} 3. Nf3 {[%emt 0:02:33]} d5 {[%emt 0:00:06]} 4. e3 {[%emt 0:00:03]} e6 {[%emt 0:00:29]} 5. d4 {[%emt 0:01:13]} Nbd7 {[%emt 0:00:09]} 6. Qc2 {[%emt 0:00:04]} Bd6 {[%emt 0:00:38]} 7. Bd3 {[%emt 0:00:16]} dxc4 {[%emt 0:01:06]} 8. Bxc4 {[%emt 0:00:05]} b5 {[%emt 0:00:04]} 9. Bd3 {[%emt 0:00:07]} Bb7 {[%emt 0:00:55]} 10. O-O {[%emt 0:00:52]} O-O {[%emt 0:03:21]} 11. a3 {[%emt 0:01:23]} Rc8 {[%emt 0:03:13]} 12. Qe2 {[%emt 0:09:09]} a6 {[%emt 0:11:07]} 13. e4 {[%emt 0:11:19]} e5 {[%emt 0:01:57]} 14. Rd1 {[%emt 0:00:28]} Qe7 {[%emt 0:01:07]} 15. g3 {[%emt 0:00:10]} Rfe8 {[%emt 0:02:10]} 16. Bc2 {[%emt 0:01:16]} c5 {[%emt 0:04:46]} 17. dxe5 {[%emt 0:00:26]} Nxe5 {[%emt 0:00:54]} 18. Nh4 {[%emt 0:00:06]} g6 {[%emt 0:06:17]} 19. Bg5 {[%emt 0:05:20]} c4 {[%emt 0:12:51]} 20. Ng2 {[%emt 0:04:53]} h6 {[%emt 0:09:44]} 21. Bxh6 {[%emt 0:04:19]} Nfg4 {[%emt 0:01:23]} 22. Bf4 {[%emt 0:06:33]} f5 {[%emt 0:08:44]} 23. h3 {[%emt 0:15:35]} Nf6 {[%emt 0:16:02]} 24. Nh4 {[%emt 0:11:34]} Bc5 {[%emt 0:03:15]} 25. Kh2 {[%emt 0:08:00]} Kg7 {[%emt 0:02:59]} 26. Bxe5 {[%emt 0:01:22]} Qxe5 {[%emt 0:00:31]} 27. f4 {[%emt 0:00:02]} Qe6 {[%emt 0:03:41]} 28. e5 {[%emt 0:00:52]} Nd5 {[%emt 0:00:05]} 29. Nxd5 {[%emt 0:00:42]} Bxd5 {[%emt 0:00:02]} 30. Nxg6 {[%emt 0:04:36]} Rh8 {[%emt 0:04:57]} 31. Nh4 {[%emt 0:06:06]} Rxh4 {[%emt 0:02:22]} 32. gxh4 {[%emt 0:00:04]} Rh8 {[%emt 0:00:33]} 33. Rg1+ {[%emt 0:00:16]} Kf8 {[%emt 0:00:17]} 34. Rg5 {[%emt 0:01:20]} Rxh4 {[%emt 0:00:13]} 35. Bxf5 {[%emt 0:00:28]} Qh6 {[%emt 0:00:37]} 36. Qd2 {[%emt 0:00:45]} Qxg5 {[%emt 0:00:51]} 37. fxg5 {[%emt 0:00:11]} Rd4 {[%emt 0:00:02]} 38. Qf2 {[%emt 0:00:53]} Ke7 {[%emt 0:00:34]} 39. Bg4 {[%emt 0:00:50]} Kd8 {[%emt 0:00:23]} 40. Rd1 {[%emt 0:01:08]} Rxg4 {[%emt 0:01:01]} 41. Rxd5+ 1-0

[Event "Norm Congress-IM 2018"]
[Site "Saint Louis"]
[Date "2018.02.09"]
[Round "2"]
[White "Grabinsky, Aaron"]
[Black "Jacobson, Brandon"]
[Result "1-0"]
[ECO "A45"]
[WhiteElo "2388"]
[BlackElo "2351"]
[Annotator "NA"]
[PlyCount "77"]
[EventDate "2018.??.??"]
[EventType "schev"]
[EventCountry "USA"]
[SourceTitle "playchess.com"]
[Source "ChessBase"]
[SourceQuality "1"]
[TimeControl "5400+30"]

1. d4 {[%emt 0:01:26]} Nf6 {[%emt 0:00:07]} 2. Bf4 {[%emt 0:00:05]} g6 {[%emt 0:00:06]} 3. Nc3 {[%emt 0:00:04]} d5 {[%emt 0:00:05]} 4. Qd2 {[%emt 0:00:13]} c6 {[%emt 0:06:08]} 5. Bh6 {[%emt 0:02:14]} Bxh6 {[%emt 0:01:36]} 6. Qxh6 {[%emt 0:00:07]} Nbd7 {[%emt 0:00:07]} 7. Nf3 {[%emt 0:02:26]} b5 {[%emt 0:01:40]} 8. e3 {[%emt 0:02:30]} Qa5 {[%emt 0:11:23]} 9. Nd2 {[%emt 0:02:24]} Qc7 {[%emt 0:05:23]} 10. a3 {[%emt 0:02:37]} e5 {[%emt 0:02:41]} 11. Be2 {[%emt 0:03:38]} Qd6 {[%emt 0:02:29]} 12. O-O {[%emt 0:01:59]} Ng8 {[%emt 0:00:46]} 13. Qg5 {[%emt 0:03:30]} f6 {[%emt 0:08:42]} 14. Qg3 {[%emt 0:00:24]} Ke7 {[%emt 0:13:56]} 15. dxe5 {[%emt 0:03:36]} fxe5 {[%emt 0:00:34]} 16. Rad1 {[%emt 0:02:26]} Ngf6 {[%emt 0:17:26]} 17. Nde4 {[%emt 0:01:28]} Qe6 {[%emt 0:00:52]} 18. Ng5 {[%emt 0:02:49]} Qg8 {[%emt 0:00:09]} 19. Bg4 {[%emt 0:12:31]} Nxg4 {[%emt 0:02:50]} 20. Qxg4 {[%emt 0:00:11]} h6 {[%emt 0:18:10]} 21. Qb4+ {[%emt 0:10:20]} Kd8 {[%emt 0:02:25]} 22. Nf3 {[%emt 0:01:04]} Qe6 {[%emt 0:00:56]} 23. a4 {[%emt 0:00:53]} Bb7 {[%emt 0:02:22]} 24. axb5 {[%emt 0:03:22]} c5 {[%emt 0:00:01]} 25. Qa5+ {[%emt 0:01:22]} Kc8 {[%emt 0:00:01]} 26. Rfe1 {[%emt 0:04:40]} Rf8 {[%emt 0:00:33]} 27. Qa2 {[%emt 0:04:56]} e4 {[%emt 0:01:48]} 28. Nd2 {[%emt 0:01:11]} Qf7 {[%emt 0:00:41]} 29. Rf1 {[%emt 0:01:46]} Ne5 {[%emt 0:00:14]} 30. Qa3 {[%emt 0:00:38]} Qc7 {[%emt 0:00:41]} 31. Na4 {[%emt 0:00:39]} Nd7 {[%emt 0:00:14]} 32. Nb3 {[%emt 0:00:23]} a6 {[%emt 0:00:44]} 33. b6 {[%emt 0:00:33]} Nxb6 {[%emt 0:00:10]} 34. Nxb6+ {[%emt 0:00:59]} Qxb6 {[%emt 0:00:05]} 35. Nxc5 {[%emt 0:00:16]} Rd8 {[%emt 0:00:20]} 36. Rd4 {[%emt 0:00:39]} a5 {[%emt 0:00:00]} 37. Rfd1 {[%emt 0:00:24]} Bc6 {[%emt 0:00:14]} 38. Nxe4 {[%emt 0:00:43]} Kc7 {[%emt 0:00:16]} 39. Nc3 1-0

[Event "Norm Congress-IM 2018"]
[Site "Saint Louis"]
[Date "2018.02.09"]
[Round "2"]
[White "Torres Rosas, Luis Carlos"]
[Black "Zhou, Qiyu"]
[Result "1/2-1/2"]
[ECO "E32"]
[WhiteElo "2370"]
[BlackElo "2230"]
[Annotator "NA"]
[PlyCount "46"]
[EventDate "2018.??.??"]
[EventType "schev"]
[EventCountry "USA"]
[SourceTitle "playchess.com"]
[Source "ChessBase"]
[SourceQuality "1"]
[TimeControl "5400+30"]

1. d4 {[%emt 0:00:00]} Nf6 {[%emt 0:00:05]} 2. c4 {[%emt 0:00:00]} e6 {[%emt 0:00:03]} 3. Nc3 {[%emt 0:00:03]} Bb4 {[%emt 0:00:12]} 4. Qc2 {[%emt 0:00:09]} O-O {[%emt 0:00:49]} 5. a3 {[%emt 0:00:58]} Bxc3+ {[%emt 0:00:25]} 6. Qxc3 {[%emt 0:00:05]} b6 {[%emt 0:01:19]} 7. Bg5 {[%emt 0:04:43]} Bb7 {[%emt 0:00:54]} 8. Nf3 {[%emt 0:00:55]} d6 {[%emt 0:01:00]} 9. e3 {[%emt 0:01:23]} Nbd7 {[%emt 0:02:22]} 10. Be2 {[%emt 0:08:35]} Rc8 {[%emt 0:03:26]} 11. Bh4 {[%emt 0:02:48]} c5 {[%emt 0:08:44]} 12. O-O {[%emt 0:04:08]} Qc7 {[%emt 0:10:36]} 13. Rfd1 {[%emt 0:08:45]} d5 {[%emt 0:09:49]} 14. Rac1 {[%emt 0:28:24]} Ne4 {[%emt 0:11:02]} 15. Qe1 {[%emt 0:01:19]} Qb8 {[%emt 0:02:36]} 16. cxd5 {[%emt 0:03:34]} Bxd5 {[%emt 0:07:38]} 17. Ba6 {[%emt 0:01:19]} Rc7 {[%emt 0:02:09]} 18. Qe2 {[%emt 0:04:47]} Ndf6 {[%emt 0:10:39]} 19. dxc5 {[%emt 0:08:45]} Rxc5 {[%emt 0:00:36]} 20. Nd4 {[%emt 0:01:25]} Qc7 {[%emt 0:11:13]} 21. Nb5 {[%emt 0:08:23]} Qc6 {[%emt 0:01:54]} 22. Nd4 {[%emt 0:01:54]} Qc7 {[%emt 0:00:57]} 23. Nb5 {[%emt 0:07:13]} Qc6 {[%emt 0:00:06]} 1/2-1/2

[Event "Norm Congress-IM 2018"]
[Site "Saint Louis"]
[Date "2018.02.09"]
[Round "2"]
[White "Stearman, Josiah"]
[Black "Wang, Justin"]
[Result "0-1"]
[ECO "C55"]
[WhiteElo "2335"]
[BlackElo "2368"]
[Annotator "NA"]
[PlyCount "190"]
[EventDate "2018.??.??"]
[EventType "schev"]
[EventCountry "USA"]
[SourceTitle "playchess.com"]
[Source "ChessBase"]
[SourceQuality "1"]
[TimeControl "5400+30"]

1. e4 {[%emt 0:00:00]} e5 {[%emt 0:00:38]} 2. Nf3 {[%emt 0:00:00]} Nc6 {[%emt 0:00:43]} 3. Bc4 {[%emt 0:00:00]} Nf6 {[%emt 0:00:24]} 4. d3 {[%emt 0:00:13]} Be7 {[%emt 0:00:27]} 5. O-O {[%emt 0:00:07]} O-O {[%emt 0:00:15]} 6. Re1 {[%emt 0:01:41]} d6 {[%emt 0:01:04]} 7. a4 {[%emt 0:02:59]} Na5 {[%emt 0:00:47]} 8. Ba2 {[%emt 0:00:20]} c5 {[%emt 0:00:02]} 9. Nbd2 {[%emt 0:03:00]} Be6 {[%emt 0:02:06]} 10. Bc4 {[%emt 0:03:42]} Qd7 {[%emt 0:04:59]} 11. Qe2 {[%emt 0:01:27]} Nc6 {[%emt 0:05:46]} 12. c3 {[%emt 0:02:07]} Rae8 {[%emt 0:02:27]} 13. Nf1 {[%emt 0:02:29]} a6 {[%emt 0:07:34]} 14. Ne3 {[%emt 0:25:36]} d5 {[%emt 0:04:36]} 15. Ba2 {[%emt 0:01:51]} h6 {[%emt 0:10:36]} 16. Qc2 {[%emt 0:02:42]} Rd8 {[%emt 0:08:41]} 17. Bd2 {[%emt 0:09:45]} dxe4 {[%emt 0:11:35]} 18. dxe4 {[%emt 0:03:05]} Bxa2 {[%emt 0:00:42]} 19. Rxa2 {[%emt 0:00:09]} Qd3 {[%emt 0:02:22]} 20. Qxd3 {[%emt 0:01:14]} Rxd3 {[%emt 0:01:55]} 21. Nc4 {[%emt 0:03:53]} Rfd8 {[%emt 0:04:53]} 22. a5 {[%emt 0:01:46]} Bd6 {[%emt 0:05:30]} 23. Re2 {[%emt 0:03:30]} Bc7 {[%emt 0:00:52]} 24. b3 {[%emt 0:00:25]} Ne8 {[%emt 0:02:01]} 25. h3 {[%emt 0:07:50]} f6 {[%emt 0:01:42]} 26. Ne1 {[%emt 0:02:01]} R3d7 {[%emt 0:00:28]} 27. Be3 {[%emt 0:00:22]} Nd6 {[%emt 0:05:41]} 28. Nxd6 {[%emt 0:00:09]} Bxd6 {[%emt 0:00:12]} 29. Nd3 {[%emt 0:00:09]} c4 {[%emt 0:04:27]} 30. bxc4 {[%emt 0:00:11]} Be7 {[%emt 0:00:27]} 31. Nb2 {[%emt 0:00:26]} Rc8 {[%emt 0:01:59]} 32. Na4 {[%emt 0:04:26]} Bd8 {[%emt 0:00:22]} 33. Nb6 {[%emt 0:01:08]} Bxb6 {[%emt 0:00:17]} 34. axb6 {[%emt 0:00:07]} Nb8 {[%emt 0:01:56]} 35. Red2 {[%emt 0:02:07]} Kf7 {[%emt 0:00:28]} 36. c5 {[%emt 0:05:28]} Rcd8 {[%emt 0:01:16]} 37. Rdb2 {[%emt 0:00:24]} Rd1+ {[%emt 0:01:33]} 38. Kh2 {[%emt 0:00:02]} Ke6 {[%emt 0:00:37]} 39. g3 {[%emt 0:00:41]} R1d3 {[%emt 0:00:35]} 40. Rc2 {[%emt 0:00:38]} Kd7 {[%emt 0:00:09]} 41. h4 {[%emt 0:00:41]} h5 {[%emt 0:00:26]} 42. Kg2 {[%emt 0:00:22]} Kc6 {[%emt 0:00:32]} 43. Kf3 {[%emt 0:00:27]} Nd7 {[%emt 0:00:21]} 44. Ra5 {[%emt 0:00:03]} Nf8 {[%emt 0:00:30]} 45. Ke2 {[%emt 0:00:19]} Ne6 {[%emt 0:00:28]} 46. f4 {[%emt 0:01:08]} R3d7 {[%emt 0:02:28]} 47. Kf3 {[%emt 0:01:00]} Rd3 {[%emt 0:00:35]} 48. Ke2 {[%emt 0:00:29]} R3d7 {[%emt 0:00:01]} 49. f5 {[%emt 0:00:48]} Nd4+ {[%emt 0:00:43]} 50. cxd4 {[%emt 0:03:31]} exd4 {[%emt 0:00:02]} 51. Rc1 {[%emt 0:02:48]} dxe3 {[%emt 0:00:06]} 52. Ra3 {[%emt 0:00:10]} Rd2+ {[%emt 0:01:26]} 53. Kxe3 {[%emt 0:00:01]} Rg2 {[%emt 0:00:09]} 54. Kf4 {[%emt 0:01:14]} Rdd2 {[%emt 0:00:22]} 55. Rf3 {[%emt 0:01:14]} Rge2 {[%emt 0:01:41]} 56. Rc4 {[%emt 0:01:28]} Kb5 {[%emt 0:01:57]} 57. Rcc3 {[%emt 0:00:01]} Rd4 {[%emt 0:00:43]} 58. Rfe3 {[%emt 0:00:34]} Rf2+ {[%emt 0:00:09]} 59. Rf3 {[%emt 0:00:01]} Rxf3+ {[%emt 0:00:17]} 60. Kxf3 {[%emt 0:00:12]} Kc6 {[%emt 0:00:04]} 61. g4 {[%emt 0:01:39]} hxg4+ {[%emt 0:01:23]} 62. Kf4 {[%emt 0:00:07]} a5 {[%emt 0:00:12]} 63. h5 {[%emt 0:00:21]} a4 {[%emt 0:00:37]} 64. Rg3 {[%emt 0:00:45]} Kxc5 {[%emt 0:00:44]} 65. Rxg4 {[%emt 0:00:14]} Rd7 {[%emt 0:00:31]} 66. Ke3 {[%emt 0:01:35]} Kb5 {[%emt 0:00:11]} 67. Rg1 {[%emt 0:00:32]} Kxb6 {[%emt 0:00:09]} 68. h6 {[%emt 0:00:42]} gxh6 {[%emt 0:00:10]} 69. Rg6 {[%emt 0:00:01]} Rf7 {[%emt 0:03:53]} 70. e5 {[%emt 0:00:05]} Kc7 {[%emt 0:00:36]} 71. e6 {[%emt 0:00:04]} Rf8 {[%emt 0:00:13]} 72. Rxh6 {[%emt 0:00:08]} a3 {[%emt 0:00:09]} 73. Rh7+ {[%emt 0:00:29]} Kc6 {[%emt 0:00:13]} 74. Rh2 {[%emt 0:01:57]} b5 {[%emt 0:01:24]} 75. Kd4 {[%emt 0:01:10]} Ra8 {[%emt 0:00:18]} 76. Ra2 {[%emt 0:00:04]} Kd6 {[%emt 0:00:29]} 77. Kc3 {[%emt 0:02:42]} Ke5 {[%emt 0:00:24]} 78. Kb4 {[%emt 0:00:01]} Kxf5 {[%emt 0:00:16]} 79. e7 {[%emt 0:00:07]} Re8 {[%emt 0:00:41]} 80. Rxa3 {[%emt 0:00:19]} Rxe7 {[%emt 0:00:01]} 81. Rf3+ {[%emt 0:00:10]} Kg5 {[%emt 0:00:05]} 82. Rg3+ {[%emt 0:01:04]} Kf4 {[%emt 0:00:01]} 83. Rg1 Re5 {[%emt 0:00:12]} 84. Rf1+ {[%emt 0:00:42]} Kg5 {[%emt 0:00:01]} 85. Rg1+ {[%emt 0:00:11]} Kf5 {[%emt 0:00:02]} 86. Rf1+ {[%emt 0:00:14]} Ke6 {[%emt 0:00:07]} 87. Rg1 {[%emt 0:00:08]} Rd5 {[%emt 0:00:08]} 88. Re1+ {[%emt 0:00:04]} Kf7 {[%emt 0:00:03]} 89. Rf1 {[%emt 0:00:33]} f5 {[%emt 0:00:05]} 90. Rf2 {[%emt 0:00:08]} Kf6 {[%emt 0:00:03]} 91. Rf1 {[%emt 0:00:06]} Kg5 {[%emt 0:00:08]} 92. Rg1+ {[%emt 0:00:08]} Kf4 {[%emt 0:00:01]} 93. Rf1+ {[%emt 0:00:05]} Kg3 {[%emt 0:00:06]} 94. Rg1+ {[%emt 0:00:05]} Kf2 {[%emt 0:00:19]} 95. Rg5 {[%emt 0:00:11]} Ke3 {[%emt 0:00:07]} 0-1

[Event "Norm Congress-IM 2018"]
[Site "Saint Louis"]
[Date "2018.02.10"]
[Round "4"]
[White "Torres Rosas, Luis Carlos"]
[Black "Turgut, Tansel"]
[Result "1/2-1/2"]
[ECO "D45"]
[WhiteElo "2370"]
[BlackElo "2224"]
[Annotator "RC"]
[PlyCount "73"]
[EventDate "2018.??.??"]
[EventType "schev"]
[EventCountry "USA"]
[SourceTitle "playchess.com"]
[Source "ChessBase"]
[SourceQuality "1"]
[TimeControl "5400+30"]

1. d4 {[%emt 0:00:00]} d5 {[%emt 0:00:28]} 2. c4 {[%emt 0:00:00]} c6 {[%emt 0:00:03]} 3. Nf3 {[%emt 0:00:00]} Nf6 {[%emt 0:00:13]} 4. Nc3 {[%emt 0:00:00]} e6 {[%emt 0:00:06]} 5. e3 {[%emt 0:00:00]} Nbd7 {[%emt 0:00:10]} 6. Qc2 {[%emt 0:00:03]} Bd6 {[%emt 0:00:12]} 7. Bd3 {[%emt 0:00:09]} O-O {[%emt 0:06:59]} 8. O-O {[%emt 0:00:31]} Qe7 {[%emt 0:00:46]} 9. b3 {[%emt 0:19:36]} dxc4 {[%emt 0:02:53]} 10. bxc4 {[%emt 0:00:57]} e5 {[%emt 0:00:09]} 11. c5 {[%emt 0:12:59]} Bc7 {[%emt 0:03:32]} 12. Nd2 {[%emt 0:02:13]} Re8 {[%emt 0:04:17]} 13. Nc4 {[%emt 0:06:34]} e4 {[%emt 0:16:39]} 14. Be2 {[%emt 0:00:38]} Nf8 {[%emt 0:03:07]} 15. Ba3 {[%emt 0:12:07]} Ng6 {[%emt 0:06:28]} 16. Nd6 {[%emt 0:03:21]} Bxd6 {[%emt 0:00:13]} 17. cxd6 {[%emt 0:00:05]} Qe6 {[%emt 0:00:10]} 18. Qb3 {[%emt 0:05:45]} Qf5 {[%emt 0:04:23]} 19. f4 {[%emt 0:02:28]} b6 {[%emt 0:04:31]} 20. Rac1 {[%emt 0:04:29]} Bd7 {[%emt 0:04:02]} 21. Nd1 {[%emt 0:01:02]} h5 {[%emt 0:01:20]} 22. Nb2 {[%emt 0:00:31]} Nd5 {[%emt 0:02:17]} 23. Nc4 {[%emt 0:03:48]} f6 {[%emt 0:02:00]} 24. Qd1 {[%emt 0:08:04]} h4 {[%emt 0:01:20]} 25. h3 {[%emt 0:02:19]} Nf8 {[%emt 0:03:25]} 26. Bg4 {[%emt 0:00:16]} Qg6 {[%emt 0:09:38]} 27. Bxd7 {[%emt 0:06:57]} Nxd7 {[%emt 0:00:10]} 28. Qe1 {[%emt 0:00:29]} Qh5 {[%emt 0:07:05]} 29. Rf2 {[%emt 0:00:33]} g5 {[%emt 0:00:50]} 30. fxg5 {[%emt 0:05:00]} Qxg5 {[%emt 0:00:04]} 31. Kh1 {[%emt 0:02:20]} Kh8 {[%emt 0:01:44]} 32. Re2 {[%emt 0:00:26]} Rac8 {[%emt 0:03:18]} 33. Nd2 {[%emt 0:00:32]} a5 {[%emt 0:04:07]} 34. Qf2 {[%emt 0:00:16]} b5 {[%emt 0:01:31]} 35. Rf1 {[%emt 0:00:14]} Re6 {[%emt 0:04:34]} 36. Qf5 {[%emt 0:00:33]} Qxf5 {[%emt 0:01:19]} 37. Rxf5 {[%emt 0:00:03]} 1/2-1/2